fUSD/lending_fUSD_20250720
["ID","MTS","AMOUNT","RATE_DAILY","PERIOD"]
[373495108,1753021864351,-480.0,0.00019397,2]
[373495110,1753021864361,-164.761353,0.00019397,2]
[373495112,1753021864371,-2269.17,0.00019397,2]
[373495114,1753021864381,-300.0,0.00019397,2]
[373495116,1753021864390,-480.0,0.00019397,2]
[373495118,1753021864400,-480.0,0.00019397,2]
[373495120,1753021864410,-1014.77,0.00019397,2]
[373495122,1753021864420,-164.761353,0.00019397,2]
[373495124,1753021864431,-151.0,0.00019397,2]
[373495126,1753021864441,-151.0,0.00019397,2]
[373495128,1753021864450,-480.0,0.00019397,2]
[373495130,1753021864459,-780.33,0.00019397,2]
[373495132,1753021864468,-480.0,0.00019397,2]
[373495134,1753021864478,-559.93,0.00019397,2]
[373495136,1753021864488,-2405.56,0.00019397,2]
[373495138,1753021864498,-655.91,0.00019397,2]
[373495140,1753021864507,-1898.5,0.00019397,2]
[373495142,1753021864516,-3824.04,0.00019397,2]
[373495144,1753021864526,-480.0,0.00019397,2]
[373495146,1753021864535,-151.0,0.00019397,2]
[373495148,1753021864545,-480.0,0.00019397,2]
[373495149,1753021864554,-1056.92,0.00019397,2]
[373495151,1753021864563,-6079.07,0.00019397,2]
[373495153,1753021864572,-480.0,0.00019397,2]
[373495155,1753021864581,-529.55,0.00019397,2]
[373495157,1753021864591,-265.0,0.00019397,2]
[373495159,1753021864600,-480.0,0.00019397,2]
[373495160,1753021864610,-480.0,0.00019397,2]
[373495162,1753021864620,-1802.74,0.00019397,2]
[373495164,1753021864630,-480.0,0.00019397,2]
[373495166,1753021864639,-480.0,0.00019397,2]
[373495168,1753021864649,-480.0,0.00019397,2]
[373495170,1753021864659,-480.0,0.00019397,2]
[373495172,1753021864668,-480.0,0.00019397,2]
[373495173,1753021864678,-326.73,0.00019397,2]
[373495174,1753021864688,-480.0,0.00019397,2]
[373495175,1753021864697,-480.0,0.00019397,2]
[373495205,1753021864945,-480.0,0.00019397,2]
[373495208,1753021865000,-480.0,0.00019397,2]
[373495210,1753021865010,-480.0,0.00019397,2]
[373495212,1753021865019,-480.0,0.00019397,2]
[373495214,1753021865029,-480.0,0.00019397,2]
[373495216,1753021865039,-480.0,0.00019397,2]
[373495218,1753021865049,-2139.26752562,0.00019418,2]
[373495220,1753021865061,-859.73,0.00019426,2]
[373495222,1753021865071,-1000.0,0.00019446,2]
[373495224,1753021865080,-2139.26752562,0.00019504,2]
[373495226,1753021865090,-500.0,0.00019505,2]
[373495228,1753021865100,-500.0,0.00019505,2]
[373495231,1753021865110,-480.0,0.00019506,2]
[373495233,1753021865120,-480.0,0.00019506,2]
[373495234,1753021865131,-480.0,0.00019506,2]
[373495237,1753021865141,-480.0,0.00019506,2]
[373495239,1753021865151,-480.0,0.00019506,2]
[373495241,1753021865160,-480.0,0.00019506,2]
[373495243,1753021865169,-480.0,0.00019506,2]
[373495245,1753021865179,-480.0,0.00019506,2]
[373495247,1753021865189,-480.0,0.00019506,2]
[373495249,1753021865198,-480.0,0.00019506,2]
[373495251,1753021865208,-480.0,0.00019506,2]
[373495253,1753021865218,-480.0,0.00019506,2]
[373495255,1753021865228,-313.195665,0.00019506,2]
[373495257,1753021865238,-480.0,0.00019506,2]
[373495259,1753021865249,-373.682193,0.00019506,2]
[373495261,1753021865258,-364.832101,0.00019506,2]
[373495263,1753021865268,-480.0,0.00019506,2]
[373495265,1753021865278,-480.0,0.00019506,2]
[373495267,1753021865287,-567.19,0.00019506,2]
[373495269,1753021865297,-245.0,0.00019506,2]
[373495271,1753021865307,-480.0,0.00019506,2]
[373495273,1753021865316,-190.59,0.00019506,2]
[373495275,1753021865326,-480.0,0.00019506,2]
[373495277,1753021865336,-480.0,0.00019506,2]
[373495279,1753021865346,-423.73373616,0.00019506,2]
[373495281,1753021865355,-480.0,0.00019506,2]
[373495283,1753021865365,-480.0,0.00019506,2]
[373495285,1753021865375,-480.0,0.00019506,2]
[373495287,1753021865384,-480.0,0.00019506,2]
[373495289,1753021865394,-480.0,0.00019506,2]
[373495291,1753021865403,-480.0,0.00019506,2]
[373495293,1753021865412,-480.0,0.00019506,2]
[373495295,1753021865422,-480.0,0.00019506,2]
[373495297,1753021865432,-553.07643777,0.00019506,2]
[373495299,1753021865442,-480.0,0.00019506,2]
[373495301,1753021865451,-480.0,0.00019506,2]
[373495303,1753021865461,-289.58,0.00019506,2]
[373495305,1753021865470,-665.23,0.00019506,2]
[373495307,1753021865479,-480.0,0.00019506,2]
[373495309,1753021865491,-480.0,0.00019506,2]
[373495311,1753021865500,-480.0,0.00019506,2]
[373495313,1753021865510,-463.14,0.00019506,2]
[373495315,1753021865520,-210.16653467,0.00019506,2]
[373495317,1753021865529,-480.0,0.00019506,2]
[373495319,1753021865539,-480.0,0.00019506,2]
[373495321,1753021865548,-480.0,0.00019506,2]
[373495323,1753021865558,-480.0,0.00019506,2]
[373495325,1753021865567,-480.0,0.00019506,2]
[373495327,1753021865576,-480.0,0.00019506,2]
[373495329,1753021865586,-151.0,0.00019506,2]
[373495331,1753021865595,-480.0,0.00019506,2]
[373495333,1753021865605,-237.1,0.00019506,2]
[373495335,1753021865615,-480.0,0.00019506,2]
[373495337,1753021865627,-480.0,0.00019506,2]
[373495340,1753021865637,-151.0,0.00019506,2]
[373495342,1753021865646,-480.0,0.00019506,2]
[373495343,1753021865657,-480.0,0.00019506,2]
[373495346,1753021865666,-399.36259294,0.00019506,2]
[373495348,1753021865676,-480.0,0.00019506,2]
[373495350,1753021865686,-480.0,0.00019506,2]
[373495352,1753021865696,-480.0,0.00019506,2]
[373495354,1753021865706,-416.84,0.00019506,2]
[373495356,1753021865716,-481.04,0.00019506,2]
[373495358,1753021865726,-400.0,0.00019506,2]
[373495360,1753021865736,-480.0,0.00019506,2]
[373495362,1753021865747,-480.0,0.00019506,2]
[373495363,1753021865757,-480.0,0.00019506,2]
[373495364,1753021865766,-420.0,0.00019506,2]
[373495365,1753021865776,-480.0,0.00019506,2]
[373495366,1753021865786,-1443.9,0.00019506,2]
[373495367,1753021865796,-480.0,0.00019506,2]
[373495368,1753021865805,-480.0,0.00019506,2]
[373495369,1753021865815,-480.0,0.00019506,2]
[373495370,1753021865825,-420.0,0.00019506,2]
[373495371,1753021865834,-1392.81,0.00019506,2]
[373495372,1753021865844,-480.0,0.00019506,2]
[373495373,1753021865854,-850.04,0.00019506,2]
[373495374,1753021865864,-480.0,0.00019506,2]
[373495375,1753021865873,-1099.88,0.00019506,2]
[373495376,1753021865883,-480.0,0.00019506,2]
[373495377,1753021865893,-617.66029482,0.00019506,2]
[373495378,1753021865902,-480.0,0.00019506,2]
[373495379,1753021865912,-480.0,0.00019506,2]
[373495380,1753021865922,-547.73,0.00019506,2]
[373495381,1753021865932,-480.0,0.00019506,2]
[373495382,1753021865944,-480.0,0.00019506,2]
[373495383,1753021865954,-480.0,0.00019506,2]
[373495384,1753021865964,-951.19,0.00019506,2]
[373495385,1753021865973,-2608.72,0.00019506,2]
[373495386,1753021865983,-480.0,0.00019506,2]
[373495387,1753021865994,-481.77,0.00019506,2]
[373495388,1753021866003,-480.0,0.00019506,2]
[373495389,1753021866013,-576.63,0.00019506,2]
[373495390,1753021866023,-506.58,0.00019506,2]
[373495391,1753021866034,-480.0,0.00019506,2]
[373495392,1753021866045,-480.0,0.00019506,2]
[373495393,1753021866060,-480.0,0.00019506,2]
[373495394,1753021866070,-480.0,0.00019506,2]
[373495395,1753021866080,-480.0,0.00019506,2]
[373495396,1753021866090,-995.71,0.00019506,2]
[373495397,1753021866101,-1127.77,0.00019506,2]
[373495398,1753021866111,-253.85999471,0.00019506,2]
[373495399,1753021866120,-994.46,0.00019506,2]
[373495400,1753021866131,-480.0,0.00019506,2]
[373495401,1753021866141,-828.85,0.00019506,2]
[373495402,1753021866150,-400.0,0.00019506,2]
[373495403,1753021866161,-641.6,0.00019506,2]
[373495404,1753021866170,-499.38,0.00019506,2]
[373495405,1753021866180,-897.75,0.00019506,2]
[373495406,1753021866189,-490.98,0.00019506,2]
[373495407,1753021866199,-480.0,0.00019506,2]
[373495408,1753021866208,-480.0,0.00019506,2]
[373495409,1753021866217,-480.0,0.00019506,2]
[373495410,1753021866227,-480.0,0.00019506,2]
[373495411,1753021866237,-480.0,0.00019506,2]
[373495412,1753021866249,-480.0,0.00019506,2]
[373495413,1753021866259,-480.0,0.00019506,2]
[373495414,1753021866268,-670.8,0.00019506,2]
[373495415,1753021866279,-721.73,0.00019506,2]
[373495416,1753021866289,-4913.79,0.00019506,2]
[373495417,1753021866298,-813.8,0.00019506,2]
[373495418,1753021866308,-5868.21,0.00019506,2]
[373495419,1753021866318,-480.0,0.00019506,2]
[373495420,1753021866328,-480.0,0.00019506,2]
[373495421,1753021866338,-480.0,0.00019506,2]
[373495422,1753021866347,-480.0,0.00019506,2]
[373495423,1753021866356,-480.0,0.00019506,2]
[373495424,1753021866366,-480.0,0.00019506,2]
[373495425,1753021866375,-480.0,0.00019506,2]
[373495426,1753021866385,-480.0,0.00019506,2]
[373495427,1753021866396,-480.0,0.00019506,2]
[373495428,1753021866406,-480.0,0.00019506,2]
[373495429,1753021866415,-480.0,0.00019506,2]
[373495430,1753021866425,-1473.19,0.00019506,2]
[373495431,1753021866434,-480.0,0.00019506,2]
[373495432,1753021866444,-867.07,0.00019506,2]
[373495433,1753021866455,-480.0,0.00019506,2]
[373495434,1753021866464,-480.0,0.00019506,2]
[373495435,1753021866474,-708.96,0.00019506,2]
[373495436,1753021866483,-480.0,0.00019506,2]
[373495437,1753021866495,-480.0,0.00019506,2]
[373495438,1753021866505,-480.0,0.00019506,2]
[373495439,1753021866515,-651.44,0.00019506,2]
[373495440,1753021866524,-151.0,0.00019506,2]
[373495441,1753021866535,-480.0,0.00019506,2]
[373495442,1753021866544,-480.0,0.00019506,2]
[373495443,1753021866554,-619.32,0.00019506,2]
[373495444,1753021866564,-480.0,0.00019506,2]
[373495445,1753021866573,-998.54,0.00019506,2]
[373495446,1753021866583,-752.67,0.00019506,2]
[373495447,1753021866592,-1009.52,0.00019506,2]
[373495448,1753021866601,-480.0,0.00019506,2]
[373495449,1753021866611,-480.0,0.00019506,2]
[373495450,1753021866620,-480.0,0.00019506,2]
[373495451,1753021866630,-151.0,0.00019506,2]
[373495452,1753021866639,-359.88,0.00019506,2]
[373495453,1753021866649,-480.0,0.00019506,2]
[373495454,1753021866659,-480.0,0.00019506,2]
[373495455,1753021866669,-480.0,0.00019506,2]
[373495456,1753021866679,-480.0,0.00019506,2]
[373495457,1753021866689,-480.0,0.00019506,2]
[373495458,1753021866700,-480.0,0.00019506,2]
[373495459,1753021866715,-480.0,0.00019506,2]
[373495460,1753021866725,-929.28,0.00019506,2]
[373495461,1753021866735,-922.54,0.00019506,2]
[373495462,1753021866746,-1448.41,0.00019506,2]
[373495463,1753021866755,-774.92,0.00019506,2]
[373495464,1753021866765,-480.0,0.00019506,2]
[373495465,1753021866775,-480.0,0.00019506,2]
[373495466,1753021866785,-480.0,0.00019506,2]
[373495467,1753021866794,-151.0,0.00019506,2]
[373495468,1753021866804,-480.0,0.00019506,2]
[373495469,1753021866813,-924.93,0.00019506,2]
[373495470,1753021866823,-613.24,0.00019506,2]
[373495471,1753021866833,-480.0,0.00019506,2]
[373495472,1753021866842,-480.0,0.00019506,2]
[373495473,1753021866851,-1319.46,0.00019506,2]
[373495474,1753021866860,-480.0,0.00019506,2]
[373495475,1753021866870,-1927.74,0.00019506,2]
[373495476,1753021866880,-9862.65,0.00019506,2]
[373495477,1753021866890,-480.0,0.00019506,2]
[373495478,1753021866900,-480.0,0.00019506,2]
[373495479,1753021866909,-480.0,0.00019506,2]
[373495480,1753021866918,-489.48,0.00019506,2]
[373495481,1753021866927,-480.0,0.00019506,2]
[373495482,1753021866937,-480.0,0.00019506,2]
[373495483,1753021866946,-954.23,0.00019506,2]
[373495484,1753021866955,-796.22,0.00019506,2]
[373495485,1753021866965,-480.0,0.00019506,2]
[373495486,1753021866974,-480.0,0.00019506,2]
[373495487,1753021866983,-480.0,0.00019506,2]
[373495488,1753021866992,-480.0,0.00019506,2]
[373495489,1753021867001,-480.0,0.00019506,2]
[373495490,1753021867010,-480.0,0.00019506,2]
[373495491,1753021867020,-480.0,0.00019506,2]
[373495492,1753021867029,-480.0,0.00019506,2]
[373495493,1753021867039,-480.0,0.00019506,2]
[373495494,1753021867049,-480.0,0.00019506,2]
[373495495,1753021867062,-480.0,0.00019506,2]
[373495496,1753021867071,-2724.33,0.00019506,2]
[373495497,1753021867081,-480.0,0.00019506,2]
[373495498,1753021867091,-693.39,0.00019506,2]
[373495499,1753021867101,-480.0,0.00019506,2]
[373495500,1753021867110,-350.26764677,0.00019506,2]
[373495501,1753021867120,-992.45,0.00019506,2]
[373495502,1753021867132,-847.51,0.00019506,2]
[373495503,1753021867143,-480.0,0.00019506,2]
[373495504,1753021867153,-719.39,0.00019506,2]
[373495505,1753021867162,-480.0,0.00019506,2]
[373495506,1753021867172,-480.0,0.00019506,2]
[373495507,1753021867182,-480.0,0.00019506,2]
[373495508,1753021867192,-480.0,0.00019506,2]
[373495509,1753021867201,-1491.03,0.00019506,2]
[373495511,1753021867212,-609.42,0.00019506,2]
[373495513,1753021867221,-480.0,0.00019506,2]
[373495515,1753021867231,-480.0,0.00019506,2]
[373495517,1753021867242,-480.0,0.00019506,2]
[373495519,1753021867252,-480.0,0.00019506,2]
[373495521,1753021867262,-486.97,0.00019506,2]
[373495523,1753021867271,-480.0,0.00019506,2]
[373495525,1753021867281,-480.0,0.00019506,2]
[373495527,1753021867291,-612.41,0.00019506,2]
[373495529,1753021867301,-484.76,0.00019506,2]
[373495530,1753021867311,-480.0,0.00019506,2]
[373495531,1753021867321,-480.0,0.00019506,2]
[373495532,1753021867331,-186.02,0.00019506,2]
[373495533,1753021867341,-480.0,0.00019506,2]
[373495534,1753021867351,-511.23,0.00019506,2]
[373495536,1753021867361,-1781.68,0.00019506,2]
[373495538,1753021867370,-480.0,0.00019506,2]
[373495540,1753021867380,-480.0,0.00019506,2]
[373495550,1753021867465,-607.05,0.00019506,2]
[373495552,1753021867475,-480.0,0.00019506,2]
[373495554,1753021867485,-999.39,0.00019506,2]
[373495556,1753021867495,-480.0,0.00019506,2]
[373495558,1753021867504,-480.0,0.00019506,2]
[373495560,1753021867513,-360.0,0.00019506,2]
[373495562,1753021867523,-480.0,0.00019506,2]
[373495564,1753021867532,-151.0,0.00019506,2]
[373495566,1753021867541,-480.0,0.00019506,2]
[373495568,1753021867550,-480.0,0.00019506,2]
[373495569,1753021867560,-480.0,0.00019506,2]
[373495571,1753021867569,-151.0,0.00019506,2]
[373495573,1753021867578,-151.0,0.00019506,2]
[373495575,1753021867588,-958.42973,0.00019506,2]
[373495577,1753021867597,-480.0,0.00019506,2]
[373495579,1753021867607,-480.0,0.00019506,2]
[373495581,1753021867616,-1981.57,0.00019506,2]
[373495583,1753021867627,-480.0,0.00019506,2]
[373495585,1753021867637,-480.0,0.00019506,2]
[373495587,1753021867648,-480.0,0.00019506,2]
[373495589,1753021867657,-480.0,0.00019506,2]
[373495590,1753021867668,-301.68,0.00019506,2]
[373495591,1753021867678,-510.77,0.00019506,2]
[373495592,1753021867687,-151.0,0.00019506,2]
[373495593,1753021867697,-480.0,0.00019506,2]
[373495594,1753021867706,-171.93659,0.00019506,2]
[373495595,1753021867716,-582.45,0.00019506,2]
[373495596,1753021867725,-480.0,0.00019506,2]
[373495597,1753021867734,-480.0,0.00019506,2]
[373495598,1753021867745,-480.0,0.00019506,2]
[373495599,1753021867754,-480.0,0.00019506,2]
[373495600,1753021867763,-480.0,0.00019506,2]
[373495601,1753021867773,-480.0,0.00019506,2]
[373495602,1753021867783,-480.0,0.00019506,2]
[373495603,1753021867792,-480.0,0.00019506,2]
[373495604,1753021867803,-480.0,0.00019506,2]
[373495605,1753021867811,-480.0,0.00019506,2]
[373495606,1753021867821,-480.0,0.00019506,2]
[373495607,1753021867831,-480.0,0.00019506,2]
[373495608,1753021867840,-151.0,0.00019506,2]
[373495609,1753021867850,-480.0,0.00019506,2]
[373495610,1753021867859,-1122.43,0.00019506,2]
[373495611,1753021867867,-480.0,0.00019506,2]
[373495612,1753021867877,-480.0,0.00019506,2]
[373495613,1753021867886,-5750.7,0.00019506,2]
[373495614,1753021867895,-480.0,0.00019506,2]
[373495615,1753021867905,-480.0,0.00019506,2]
[373495616,1753021867917,-480.0,0.00019506,2]
[373495617,1753021867926,-151.0,0.00019506,2]
[373495618,1753021867936,-480.0,0.00019506,2]
[373495619,1753021867945,-744.31,0.00019506,2]
[373495620,1753021867958,-480.0,0.00019506,2]
[373495621,1753021867968,-480.0,0.00019506,2]
[373495622,1753021867978,-480.0,0.00019506,2]
[373495623,1753021867988,-480.0,0.00019506,2]
[373495624,1753021867999,-595.12,0.00019506,2]
[373495625,1753021868009,-151.0,0.00019506,2]
[373495626,1753021868018,-480.0,0.00019506,2]
[373495627,1753021868028,-151.263948,0.00019506,2]
[373495628,1753021868037,-480.0,0.00019506,2]
[373495629,1753021868047,-822.8,0.00019506,2]
[373495630,1753021868060,-722.23,0.00019506,2]
[373495631,1753021868070,-530.25,0.00019506,2]
[373495632,1753021868079,-480.0,0.00019506,2]
[373495633,1753021868089,-480.0,0.00019506,2]
[373495634,1753021868099,-1936.11,0.00019506,2]
[373495635,1753021868108,-480.0,0.00019506,2]
[373495636,1753021868117,-664.91,0.00019506,2]
[373495637,1753021868127,-516.68,0.00019506,2]
[373495638,1753021868139,-480.0,0.00019506,2]
[373495639,1753021868149,-480.0,0.00019506,2]
[373495640,1753021868159,-480.0,0.00019506,2]
[373495641,1753021868168,-480.0,0.00019506,2]
[373495642,1753021868178,-575.06,0.00019506,2]
[373495643,1753021868187,-338.62,0.00019506,2]
[373495644,1753021868197,-480.0,0.00019506,2]
[373495645,1753021868206,-480.0,0.00019506,2]
[373495646,1753021868215,-1623.56,0.00019506,2]
[373495647,1753021868226,-480.0,0.00019506,2]
[373495648,1753021868238,-643.57,0.00019506,2]
[373495649,1753021868250,-480.0,0.00019506,2]
[373495650,1753021868259,-480.0,0.00019506,2]
[373495651,1753021868269,-480.0,0.00019506,2]
[373495652,1753021868280,-2083.36,0.00019506,2]
[373495653,1753021868290,-480.0,0.00019506,2]
[373495654,1753021868299,-151.0,0.00019506,2]
[373495655,1753021868309,-556.17,0.00019506,2]
[373495656,1753021868319,-480.0,0.00019506,2]
[373495657,1753021868328,-480.0,0.00019506,2]
[373495658,1753021868338,-480.0,0.00019506,2]
[373495659,1753021868347,-360.0,0.00019506,2]
[373495660,1753021868357,-992.12,0.00019506,2]
[373495661,1753021868367,-480.0,0.00019506,2]
[373495662,1753021868377,-480.0,0.00019506,2]
[373495663,1753021868386,-5247.36,0.00019506,2]
[373495664,1753021868395,-480.0,0.00019506,2]
[373495665,1753021868405,-480.0,0.00019506,2]
[373495666,1753021868415,-480.0,0.00019506,2]
[373495667,1753021868426,-521.86,0.00019506,2]
[373495668,1753021868435,-1698.77,0.00019506,2]
[373495669,1753021868444,-480.0,0.00019506,2]
[373495670,1753021868454,-480.0,0.00019506,2]
[373495671,1753021868463,-480.0,0.00019506,2]
[373495672,1753021868472,-1072.72,0.00019506,2]
[373495673,1753021868482,-480.0,0.00019506,2]
[373495674,1753021868493,-170.58,0.00019506,2]
[373495675,1753021868502,-1023.83,0.00019506,2]
[373495676,1753021868511,-504.37,0.00019506,2]
[373495677,1753021868521,-1106.66,0.00019506,2]
[373495678,1753021868530,-480.0,0.00019506,2]
[373495679,1753021868540,-1079.33,0.00019506,2]
[373495680,1753021868549,-151.0,0.00019506,2]
[373495681,1753021868558,-4811.88,0.00019506,2]
[373495682,1753021868567,-487.85,0.00019506,2]
[373495683,1753021868576,-480.0,0.00019506,2]
[373495684,1753021868586,-480.0,0.00019506,2]
[373495685,1753021868595,-440.6,0.00019506,2]
[373495686,1753021868605,-480.0,0.00019506,2]
[373495687,1753021868614,-1794.47,0.00019506,2]
[373495688,1753021868623,-805.34,0.00019506,2]
[373495689,1753021868632,-480.0,0.00019506,2]
[373495690,1753021868642,-615.6,0.00019506,2]
[373495691,1753021868651,-480.0,0.00019506,2]
[373495692,1753021868660,-480.0,0.00019506,2]
[373495693,1753021868669,-1043.62,0.00019506,2]
[373495694,1753021868679,-480.0,0.00019506,2]
[373495695,1753021868688,-151.0,0.00019506,2]
[373495696,1753021868698,-480.0,0.00019506,2]
[373495697,1753021868707,-480.0,0.00019506,2]
[373495698,1753021868718,-925.32,0.00019506,2]
[373495699,1753021868727,-360.0,0.00019506,2]
[373495700,1753021868736,-480.0,0.00019506,2]
[373495701,1753021868747,-480.0,0.00019506,2]
[373495702,1753021868757,-966.34,0.00019506,2]
[373495703,1753021868766,-919.4,0.00019506,2]
[373495704,1753021868776,-480.0,0.00019506,2]
[373495705,1753021868786,-2822.43,0.00019506,2]
[373495706,1753021868795,-720.11,0.00019506,2]
[373495707,1753021868804,-691.89,0.00019506,2]
[373495708,1753021868813,-2518.97,0.00019506,2]
[373495709,1753021868823,-509.23,0.00019506,2]
[373495710,1753021868832,-544.16,0.00019506,2]
[373495711,1753021868841,-228.96,0.00019506,2]
[373495712,1753021868850,-360.0,0.00019506,2]
[373495713,1753021868859,-781.74,0.00019506,2]
[373495714,1753021868869,-480.0,0.00019506,2]
[373495715,1753021868878,-480.0,0.00019506,2]
[373495716,1753021868888,-306.8,0.00019506,2]
[373495717,1753021868898,-480.0,0.00019506,2]
[373495718,1753021868908,-480.0,0.00019506,2]
[373495719,1753021868918,-644.3,0.00019506,2]
[373495720,1753021868928,-480.0,0.00019506,2]
[373495721,1753021868938,-480.0,0.00019506,2]
[373495722,1753021868948,-480.0,0.00019506,2]
[373495723,1753021868957,-480.0,0.00019506,2]
[373495724,1753021868966,-280.0,0.00019506,2]
[373495725,1753021868975,-480.0,0.00019506,2]
[373495726,1753021868984,-480.0,0.00019506,2]
[373495727,1753021868996,-215.663254,0.00019506,2]
[373495728,1753021869005,-1384.39,0.00019506,2]
[373495729,1753021869014,-215.663254,0.00019506,2]
[373495730,1753021869024,-480.0,0.00019506,2]
[373495731,1753021869033,-1616.64,0.00019506,2]
[373495732,1753021869043,-1357.02,0.00019506,2]
[373495733,1753021869055,-480.0,0.00019506,2]
[373495734,1753021869065,-558.15,0.00019506,2]
[373495735,1753021869079,-8237.11,0.00019506,2]
[373495736,1753021869088,-2873.85,0.00019506,2]
[373495737,1753021869099,-480.0,0.00019506,2]
[373495738,1753021869108,-480.0,0.00019506,2]
[373495739,1753021869118,-480.0,0.00019506,2]
[373495740,1753021869127,-1538.82,0.00019506,2]
[373495741,1753021869137,-480.0,0.00019506,2]
[373495742,1753021869146,-2442.01,0.00019506,2]
[373495743,1753021869156,-1862.26,0.00019506,2]
[373495744,1753021869166,-480.0,0.00019506,2]
[373495745,1753021869176,-683.82,0.00019506,2]
[373495746,1753021869185,-799.38,0.00019506,2]
[373495747,1753021869195,-599.46,0.00019506,2]
[373495748,1753021869205,-1300.86,0.00019506,2]
[373495749,1753021869215,-480.0,0.00019506,2]
[373495750,1753021869224,-480.0,0.00019506,2]
[373495751,1753021869234,-503.61,0.00019506,2]
[373495752,1753021869245,-597.75,0.00019506,2]
[373495753,1753021869255,-2561.78,0.00019506,2]
[373495754,1753021869264,-1256.19,0.00019506,2]
[373495755,1753021869274,-480.0,0.00019506,2]
[373495756,1753021869283,-509.52,0.00019506,2]
[373495757,1753021869293,-1569.99,0.00019506,2]
[373495758,1753021869302,-480.0,0.00019506,2]
[373495759,1753021869312,-1923.4,0.00019506,2]
[373495760,1753021869321,-480.0,0.00019506,2]
[373495761,1753021869331,-720.64,0.00019506,2]
[373495762,1753021869340,-480.0,0.00019506,2]
[373495763,1753021869349,-480.0,0.00019506,2]
[373495764,1753021869358,-480.0,0.00019506,2]
[373495765,1753021869368,-677.46,0.00019506,2]
[373495766,1753021869377,-360.0,0.00019506,2]
[373495767,1753021869386,-3131.19,0.00019506,2]
[373495768,1753021869396,-480.0,0.00019506,2]
[373495769,1753021869405,-1508.91,0.00019506,2]
[373495770,1753021869415,-480.0,0.00019506,2]
[373495771,1753021869425,-1708.57,0.00019506,2]
[373495772,1753021869434,-360.0,0.00019506,2]
[373495773,1753021869444,-480.0,0.00019506,2]
[373495774,1753021869454,-897.48,0.00019506,2]
[373495775,1753021869464,-480.0,0.00019506,2]
[373495777,1753021869474,-480.0,0.00019506,2]
[373495778,1753021869484,-480.0,0.00019506,2]
[373495780,1753021869495,-1444.59,0.00019506,2]
[373495781,1753021869504,-480.0,0.00019506,2]
[373495782,1753021869513,-480.0,0.00019506,2]
[373495783,1753021869523,-693.82,0.00019506,2]
[373495784,1753021869533,-480.0,0.00019506,2]
[373495785,1753021869545,-480.0,0.00019506,2]
[373495786,1753021869555,-480.0,0.00019506,2]
[373495787,1753021869565,-480.0,0.00019506,2]
[373495788,1753021869574,-2520.51,0.00019506,2]
[373495789,1753021869585,-480.0,0.00019506,2]
[373495790,1753021869595,-1465.79,0.00019506,2]